bitfinex-derivatives/quotes_BTCF0:USTF0_20241214
["timestamp","ask_amount","ask_price","bid_price","bid_amount"]
[1734163842332,0.17985965,101770.0,101760.0,1.85643885]
[1734163844940,0.17985965,101770.0,101760.0,1.49563885]
[1734163845140,0.17985965,101770.0,101760.0,1.85643885]
[1734163846136,0.17985965,101770.0,101760.0,1.79568688]
[1734163846333,0.17985965,101770.0,101760.0,1.85643885]
[1734163846932,0.17985965,101770.0,101760.0,2.08047798]
[1734163847137,0.17985965,101770.0,101760.0,1.49641162]
[1734163847337,0.17985965,101770.0,101760.0,1.85721162]
[1734163854039,0.17985965,101770.0,101760.0,1.49641162]
[1734163854242,0.17985965,101770.0,101760.0,1.85721162]
[1734163856446,0.17985965,101770.0,101760.0,1.85827409]
[1734163857642,0.09146228,101770.0,101760.0,1.85827409]
[1734163859948,0.09146228,101770.0,101760.0,1.24839012]
[1734163859949,0.15221425,101770.0,101760.0,1.24839012]
[1734163860248,0.15221425,101770.0,101760.0,0.98126719]
[1734163860452,0.29956406,101770.0,101760.0,0.98126719]
[1734163860755,0.29956406,101770.0,101760.0,0.98195451]
[1734163861342,0.15221425,101770.0,101760.0,0.98195451]
[1734163861553,0.29956406,101770.0,101760.0,0.98195451]
[1734163861759,0.41748326,101770.0,101760.0,1.27640246]
[1734163864351,0.41748326,101770.0,101760.0,1.27670971]
[1734163865250,0.41748326,101770.0,101760.0,1.33746168]
[1734163865251,0.35673129,101770.0,101760.0,1.33746168]
[1734163865456,0.35673129,101770.0,101760.0,1.38659368]
[1734163865953,0.35673129,101770.0,101760.0,1.65483414]
[1734163867960,0.35673129,101770.0,101760.0,1.38659368]
[1734163868856,0.35673129,101770.0,101760.0,1.38650889]
[1734163870157,0.20938148,101770.0,101760.0,1.38650889]
[1734163872962,0.20938148,101770.0,101760.0,1.32575692]
[1734163873255,0.20938148,101770.0,101760.0,1.38650889]
[1734163873450,0.12795448,101770.0,101760.0,1.16149549]
[1734163873657,0.12795448,101770.0,101760.0,1.50999262]
[1734163873954,0.12795448,101770.0,101760.0,1.54149262]
[1734163874357,0.21635877,101770.0,101760.0,1.51340202]
[1734163874556,0.21635877,101770.0,101760.0,2.01340202]
[1734163878262,0.26548577,101770.0,101760.0,2.01340202]
[1734163878462,0.26548577,101770.0,101760.0,1.95265005]
[1734163881162,0.21635877,101770.0,101760.0,1.95265005]
[1734163882763,0.21635877,101770.0,101760.0,1.95129239]
[1734163884567,0.26548577,101770.0,101760.0,1.91979239]
[1734163886874,0.26548577,101770.0,101760.0,1.88879239]
[1734163887469,0.26548577,101770.0,101760.0,1.88891157]
[1734163887771,0.29938577,101770.0,101760.0,1.88891157]
[1734163888377,0.29938577,101770.0,101760.0,1.88889607]
[1734163889869,0.36013774,101770.0,101760.0,1.8281441]
[1734163890070,0.36013774,101770.0,101760.0,1.3281441]
[1734163890575,0.39163774,101770.0,101760.0,1.3281441]
[1734163891777,0.39163774,101770.0,101760.0,0.83829557]
[1734163896376,0.39163774,101770.0,101760.0,1.3284577]
[1734163896675,0.39163774,101770.0,101760.0,0.83829557]
[1734163897574,0.39163774,101770.0,101760.0,0.80629557]
[1734163901278,0.39163774,101770.0,101760.0,1.29960966]
[1734163902583,0.39163774,101770.0,101760.0,1.2996094]
[1734163906389,0.39163774,101770.0,101760.0,1.03135143]
[1734163907383,0.39163774,101770.0,101760.0,1.32574837]
[1734163908378,0.39163774,101770.0,101760.0,0.96494837]
[1734163908786,0.39163774,101770.0,101760.0,1.32574837]
[1734163909386,0.30323345,101770.0,101760.0,1.32574837]
[1734163909586,0.39163248,101770.0,101760.0,1.03135143]
[1734163910297,0.39163248,101770.0,101760.0,1.29942923]
[1734163911288,0.39163248,101770.0,101760.0,1.03135143]
[1734163911494,0.39163248,101770.0,101760.0,1.29944477]
[1734163915188,0.41083657,101770.0,101760.0,1.29944477]
[1734163916299,0.41083657,101770.0,101760.0,1.29977381]
[1734163917195,0.39163248,101770.0,101760.0,1.29977381]
[1734163918903,0.39163248,101770.0,101760.0,0.93897381]
[1734163919304,0.39163248,101770.0,101760.0,1.29977381]
[1734163920303,0.41143985,101770.0,101760.0,1.29977381]
[1734163920497,0.32304082,101770.0,101760.0,1.29977381]
[1734163920700,0.47039063,101770.0,101760.0,1.54541121]
[1734163921909,0.47039063,101770.0,101760.0,1.2509223]
[1734163922310,0.47039063,101770.0,101760.0,1.54540945]
[1734163922713,0.32304082,101770.0,101760.0,1.27690955]
[1734163922913,0.32304082,101770.0,101760.0,1.32604155]
[1734163923107,0.47039063,101770.0,101760.0,1.59457543]
[1734163923308,0.47039063,101770.0,101760.0,1.30008828]
[1734163924115,0.32304082,101770.0,101760.0,0.96525239]
[1734163924316,0.32304082,101770.0,101760.0,1.32605239]
[1734163925609,0.32304082,101770.0,101760.0,1.35755239]
[1734163925810,0.29154082,101770.0,101760.0,1.35755239]
[1734163928223,0.29154082,101770.0,101760.0,1.0630544]
[1734163928518,0.29154082,101770.0,101760.0,1.0631498]
[1734163928720,0.29154082,101770.0,101760.0,0.7023498]
[1734163929021,0.29154082,101770.0,101760.0,1.0631498]
[1734163932910,0.43889063,101770.0,101760.0,1.33186998]
[1734163934313,0.43889063,101770.0,101760.0,0.97106998]
[1734163934518,0.43889063,101770.0,101760.0,1.33186998]
[1734163935022,0.27530429,101770.0,101760.0,1.39262195]
[1734163935218,0.12795448,101770.0,101760.0,1.42642195]
[1734163935412,0.21639356,101770.0,101760.0,1.42642195]
[1734163936021,0.21639356,101770.0,101760.0,1.073059]
[1734163936218,0.1611155,101770.0,101760.0,1.073059]
[1734163936421,0.17083916,101770.0,101760.0,1.073059]
[1734163937622,0.09816274,101770.0,101760.0,1.073059]
[1734163938618,0.09816274,101770.0,101760.0,1.42645986]
[1734163941921,0.09816274,101770.0,101760.0,1.0736317]
[1734163942116,0.09816274,101770.0,101760.0,1.42693965]
[1734163942321,0.15891471,101770.0,101760.0,1.42693965]
[1734163942521,0.15891471,101770.0,101760.0,1.0736317]
[1734163943328,0.20804171,101770.0,101760.0,1.42692551]
[1734163943628,0.20804171,101770.0,101760.0,1.42758941]
[1734163944928,0.20804171,101770.0,101760.0,1.01456143]
[1734163945121,0.24204171,101770.0,101760.0,0.98919281]
[1734163945323,0.18500263,101770.0,101760.0,0.98919281]
[1734163945633,0.18500263,101770.0,101760.0,0.93031723]
[1734163946022,0.18500263,101770.0,101760.0,1.32660849]
[1734163946222,0.18500263,101770.0,101760.0,0.97331468]
[1734163946922,0.18500263,101770.0,101760.0,1.32660849]
[1734163947129,0.18500263,101770.0,101760.0,0.97331468]
[1734163947627,0.18500263,101770.0,101760.0,1.32660849]
[1734163950534,0.27338202,101770.0,101760.0,1.32787353]
[1734163952126,0.27338202,101770.0,101760.0,1.32818053]
[1734163955028,0.27338202,101770.0,101760.0,1.27904853]
[1734163955234,0.27338202,101770.0,101760.0,1.2792163]
[1734163956930,0.54580263,101770.0,101760.0,0.56512249]
[1734163957540,0.56576742,101770.0,101760.0,0.56512249]
[1734163963239,0.20496742,101770.0,101760.0,0.56512249]
[1734163963437,0.56576742,101770.0,101760.0,0.56512249]
[1734163964444,0.56576742,101770.0,101760.0,0.5656632]
[1734163964941,0.20496742,101770.0,101760.0,0.5656632]
[1734163965146,0.56576742,101770.0,101760.0,0.5656632]
[1734163965440,0.65412523,101770.0,101760.0,0.5656632]
[1734163965839,0.20496742,101770.0,101760.0,0.5656632]
[1734163966049,0.56576742,101770.0,101760.0,0.5656632]
[1734163967444,0.65412515,101770.0,101760.0,0.5656632]
[1734163967645,0.56576742,101770.0,101760.0,0.5656632]
[1734163967846,0.71311723,101770.0,101760.0,0.80102054]
[1734163968539,0.35231723,101770.0,101760.0,0.80102054]
[1734163968736,0.71311723,101770.0,101760.0,0.80102054]
[1734163971542,0.7738692,101770.0,101760.0,0.80102054]
[1734163972347,0.71311723,101770.0,101760.0,0.80102054]
[1734163973853,0.7738692,101770.0,101760.0,0.80102054]
[1734163974451,0.71311723,101770.0,101760.0,0.80102054]
[1734163975448,0.7738692,101770.0,101760.0,0.80102054]
[1734163975746,0.7738692,101770.0,101760.0,0.27835479]
[1734163975747,0.95059031,101770.0,101760.0,0.27835479]
[1734163975947,0.95059031,101770.0,101760.0,0.45487193]
[1734163976149,0.8032405,101770.0,101760.0,0.45487193]
[1734163977652,0.8032405,101770.0,101760.0,0.21951459]
[1734163978647,0.95049869,101770.0,101760.0,0.21951459]
[1734163979450,0.8032405,101770.0,101760.0,0.21951459]
[1734163979642,0.95048323,101770.0,101760.0,0.21951459]
[1734163987457,0.58968323,101770.0,101760.0,0.21951459]
[1734163987662,0.58968323,101770.0,101760.0,0.17651714]
[1734163987663,0.77376212,101770.0,101760.0,0.17651714]
[1734163988569,0.95048323,101770.0,101760.0,0.17651714]
[1734163988870,0.95048323,101770.0,101760.0,0.21952169]
[1734163990763,0.95048323,101770.0,101760.0,0.19312168]
[1734163990960,0.8032405,101770.0,101760.0,0.04300455]
[1734163991466,0.8032405,101770.0,101760.0,0.03193693]
[1734163992064,0.049132,101760.0,101750.0,0.33595669]
[1734163992265,0.67864799,101760.0,101750.0,0.33595669]
[1734163993076,0.67864799,101760.0,101750.0,0.33545669]
[1734163994071,0.67864799,101760.0,101750.0,0.33595669]
[1734163994966,0.67864799,101760.0,101750.0,0.33545669]
[1734163995971,0.67864799,101760.0,101750.0,0.33595669]
[1734163996174,0.79641874,101760.0,101750.0,0.33595669]
[1734163996582,0.67864799,101760.0,101750.0,0.33595669]
[1734163996877,0.79642445,101760.0,101750.0,0.33595669]
[1734163997078,0.79642445,101760.0,101750.0,0.33545669]
[1734163997573,0.67864799,101760.0,101750.0,0.33545669]
[1734163997977,0.67864799,101760.0,101750.0,0.33595669]
[1734163999064,0.67864799,101760.0,101750.0,0.33545669]
[1734163999773,0.31784799,101760.0,101750.0,0.33545669]
[1734163999971,0.67864799,101760.0,101750.0,0.33595669]
[1734164001667,0.67864799,101760.0,101750.0,0.37896377]
[1734164004283,0.8553691,101760.0,101750.0,0.37896377]
[1734164007084,0.8553691,101760.0,101750.0,0.673382]
[1734164007581,0.67864799,101760.0,101750.0,0.37896377]
[1734164008072,0.31784799,101760.0,101750.0,0.37896377]
[1734164008269,0.67864799,101760.0,101750.0,0.37896377]
[1734164009183,0.31784799,101760.0,101750.0,0.37896384]
[1734164009378,0.31784799,101760.0,101750.0,0.33595669]
[1734164009578,0.67864799,101760.0,101750.0,0.33595669]
[1734164009773,0.31784799,101760.0,101750.0,0.33595669]
[1734164010278,0.67864799,101760.0,101750.0,0.33595669]
[1734164015173,0.67864799,101760.0,101750.0,0.3789638]
[1734164016285,0.67864799,101760.0,101750.0,0.67338203]
[1734164016884,0.8553691,101760.0,101750.0,0.67338203]
[1734164017276,0.8553691,101760.0,101750.0,0.90382035]
[1734164017480,0.8553691,101760.0,101750.0,0.67338203]
[1734164017682,0.4945691,101760.0,101750.0,0.67338203]
[1734164017886,0.8553691,101760.0,101750.0,0.67338203]
[1734164018084,0.4945691,101760.0,101750.0,0.67288203]
[1734164018388,0.8553691,101760.0,101750.0,0.90336318]
[1734164019283,0.4945691,101760.0,101750.0,0.90336318]
[1734164019483,0.8553691,101760.0,101750.0,0.90336318]
[1734164020286,0.4945691,101760.0,101750.0,0.90336318]
[1734164020583,0.8553691,101760.0,101750.0,0.90336318]
[1734164021387,0.4945691,101760.0,101750.0,0.90336318]
[1734164021576,0.8553691,101760.0,101750.0,0.90336318]
[1734164022692,0.4945691,101760.0,101750.0,0.90336318]
[1734164022886,0.8553691,101760.0,101750.0,0.90336318]
[1734164023283,0.4945691,101760.0,101750.0,0.90336318]
[1734164023485,0.8553691,101760.0,101750.0,0.90337531]
[1734164024096,0.4945691,101760.0,101750.0,0.90337531]
[1734164024392,0.8553691,101760.0,101750.0,0.90337531]
[1734164024889,0.4945691,101760.0,101750.0,0.90337531]
[1734164025091,0.8553691,101760.0,101750.0,0.90337531]
[1734164026594,0.4945691,101760.0,101750.0,0.90337531]
[1734164026788,0.8553691,101760.0,101750.0,0.90337531]
[1734164027890,0.70815705,101760.0,101750.0,0.90337531]
[1734164028088,0.74065705,101760.0,101750.0,0.90343559]
[1734164031292,0.74065705,101760.0,101750.0,0.3784638]
[1734164031889,0.74087465,101760.0,101750.0,0.3784638]
[1734164032993,0.80162662,101760.0,101750.0,0.36433804]
[1734164033294,0.80156356,101760.0,101750.0,0.06191824]
[1734164033500,0.049137,101750.0,101740.0,0.52634707]
[1734164033702,0.88701478,101750.0,101740.0,0.75808715]
[1734164033998,0.92051478,101750.0,101740.0,0.75808715]
[1734164034199,0.74363814,101750.0,101740.0,0.23535734]
[1734164034389,0.92061413,101750.0,101740.0,0.23535734]
[1734164034590,0.77321693,101750.0,101740.0,0.23535734]
[1734164034989,0.77321693,101750.0,101740.0,0.23585734]
[1734164035195,0.59634029,101750.0,101740.0,0.23585734]
[1734164035399,0.74365424,101750.0,101740.0,0.23585734]
[1734164036003,0.74365424,101750.0,101740.0,0.23535734]
[1734164036399,0.74365424,101750.0,101730.0,0.0319]
[1734164036400,0.049142,101740.0,101730.0,0.26725734]
[1734164036601,0.64927055,101740.0,101730.0,0.26725734]
[1734164036804,0.79668385,101740.0,101730.0,0.500205]
[1734164037106,0.79668385,101740.0,101730.0,0.26725734]
[1734164039302,0.73768167,101740.0,101730.0,0.26725734]
[1734164042913,0.37688167,101740.0,101730.0,0.26725734]
[1734164043213,0.73768167,101740.0,101730.0,0.26725734]
[1734164043396,0.73768167,101740.0,101730.0,0.31027193]
[1734164044105,0.73768167,101740.0,101730.0,0.31077193]
[1734164044305,0.73768167,101740.0,101730.0,0.26775734]
[1734164044701,0.73768167,101740.0,101730.0,0.31077195]
[1734164053814,0.73768167,101740.0,101730.0,0.27887195]
[1734164054208,0.76998167,101740.0,101730.0,0.27887195]
[1734164054814,0.37688167,101740.0,101730.0,0.27887195]
[1734164055007,0.25537773,101740.0,101730.0,0.36211895]
[1734164055210,0.37688167,101740.0,101730.0,0.36211895]
[1734164055923,0.73768167,101740.0,101730.0,0.36211895]
[1734164057832,0.73768167,101740.0,101730.0,0.31297195]
[1734164058322,0.73768167,101740.0,101730.0,0.54545812]
[1734164058821,0.73768167,101740.0,101730.0,0.31297195]
[1734164059218,0.6493699,101740.0,101730.0,0.31297195]
[1734164059429,0.6493699,101740.0,101730.0,0.27887195]
[1734164059624,0.6809699,101740.0,101730.0,0.27887195]
[1734164059827,0.6809699,101740.0,101730.0,0.23585734]
[1734164060227,0.82828385,101740.0,101730.0,0.23585734]
[1734164061332,0.71045924,101740.0,101730.0,0.23585734]
[1734164062226,0.71045924,101740.0,101730.0,0.46914013]
[1734164063119,0.71045924,101740.0,101730.0,0.46864013]
[1734164063535,0.71045924,101740.0,101730.0,0.76311892]
[1734164064331,0.71045924,101740.0,101730.0,0.57077632]
[1734164064727,0.71045924,101740.0,101730.0,0.80637905]
[1734164064932,0.34965924,101740.0,101730.0,0.80637905]
[1734164065231,0.88733588,101740.0,101730.0,0.80637905]
[1734164066632,0.76583194,101740.0,101730.0,0.80637905]
[1734164066834,0.88733588,101740.0,101730.0,0.80637905]
[1734164067234,0.71045924,101740.0,101730.0,0.57077632]
[1734164070131,0.88733588,101740.0,101730.0,0.57077632]
[1734164071829,0.71045924,101740.0,101730.0,0.57077632]
[1734164072535,0.88733588,101740.0,101730.0,0.57077652]
[1734164072731,0.88733588,101740.0,101730.0,0.80639467]
[1734164074238,0.88733588,101740.0,101730.0,0.57311168]
[1734164075250,0.88733588,101740.0,101730.0,0.27863289]
[1734164075745,0.88723653,101740.0,101730.0,0.27863289]
[1734164075946,0.9479885,101740.0,101730.0,0.27863289]
[1734164076137,0.88723653,101740.0,101730.0,0.27863289]
[1734164076548,0.88733588,101740.0,101730.0,0.27863289]
[1734164076753,0.88731688,101740.0,101730.0,0.27863289]
[1734164077050,0.88723653,101740.0,101730.0,0.27863289]
[1734164077640,0.52643653,101740.0,101730.0,0.27863289]
[1734164077839,0.88723653,101740.0,101730.0,0.27863289]
[1734164079245,0.88731701,101740.0,101730.0,0.27863289]
[1734164079544,0.88723653,101740.0,101730.0,0.27863289]
[1734164080852,0.80067455,101740.0,101730.0,0.17130475]
[1734164081355,0.049147,101730.0,101720.0,0.29447879]
[1734164081546,0.86099766,101730.0,101720.0,0.526652]
[1734164081746,0.73949372,101730.0,101720.0,0.526652]
[1734164082044,0.86099766,101730.0,101720.0,0.527152]
[1734164083150,0.86099766,101730.0,101720.0,0.526652]
[1734164084246,0.74310994,101730.0,101720.0,0.0005]
[1734164084452,0.91998658,101730.0,101720.0,0.0005]
[1734164085146,0.049152,101720.0,101710.0,0.32777879]
[1734164085346,0.73765898,101720.0,101710.0,0.56131835]
[1734164088246,0.73765898,101720.0,101710.0,0.32777879]
[1734164089146,0.73765898,101720.0,101710.0,0.0333]
[1734164089947,0.61615504,101720.0,101710.0,0.0333]
[1734164090252,0.73765898,101720.0,101710.0,0.0338]
[1734164090646,0.73765898,101720.0,101710.0,0.07682263]
[1734164093251,0.73765898,101720.0,101710.0,0.0338]
[1734164094050,0.37685898,101720.0,101710.0,0.0338]
[1734164094258,0.73765898,101720.0,101710.0,0.0338]
[1734164095254,0.61615504,101720.0,101710.0,0.0338]
[1734164095452,0.73765898,101720.0,101710.0,0.0338]
[1734164097761,0.75717497,101720.0,101710.0,0.0338]
[1734164100165,0.66880224,101720.0,101710.0,0.0338]
[1734164100665,0.75712478,101720.0,101710.0,0.0338]
[1734164101254,0.66880224,101720.0,101710.0,0.0338]
[1734164102065,0.75713257,101720.0,101710.0,0.07682268]
[1734164104264,0.75713257,101720.0,101710.0,0.37130147]
[1734164105257,0.66880224,101720.0,101710.0,0.37130147]
[1734164105563,0.66880224,101720.0,101710.0,0.6047057]
[1734164108264,0.81616189,101720.0,101710.0,0.6047057]
[1734164109755,0.69465795,101720.0,101710.0,0.6047057]
[1734164109953,0.81616189,101720.0,101710.0,0.6047057]
[1734164111161,0.69465795,101720.0,101710.0,0.56168302]
[1734164111461,0.69465795,101720.0,101710.0,0.56198193]
[1734164111462,0.69833158,101720.0,101710.0,0.56198193]
[1734164111868,0.33753158,101720.0,101710.0,0.56198193]
[1734164112171,0.33753158,101720.0,101710.0,0.56148193]
[1734164112172,0.69833158,101720.0,101710.0,0.56148193]
[1734164115559,0.33753158,101720.0,101710.0,0.56148193]
[1734164115761,0.69833158,101720.0,101710.0,0.56148193]
[1734164116064,0.33753158,101720.0,101710.0,0.56148193]
[1734164117976,0.45551666,101720.0,101710.0,0.56148193]
[1734164118270,0.45551666,101720.0,101710.0,0.92228193]
[1734164118456,0.33753158,101720.0,101710.0,0.92228193]
[1734164119367,0.18664518,101720.0,101710.0,0.97143793]
[1734164119769,0.22788116,101720.0,101710.0,1.32473174]
[1734164119964,0.22788116,101720.0,101710.0,1.03025295]
[1734164120163,0.16712919,101720.0,101710.0,1.07327302]
[1734164120361,0.31633939,101720.0,101710.0,1.349927]
[1734164123660,0.31633939,101720.0,101710.0,1.34823266]
[1734164127070,0.31633939,101720.0,101710.0,1.36608076]
[1734164127577,0.31633939,101720.0,101710.0,1.07162812]
[1734164127968,0.31633939,101720.0,101710.0,0.71082812]
[1734164128175,0.31633939,101720.0,101710.0,1.07154546]
[1734164130481,0.31633939,101720.0,101710.0,1.34798706]
[1734164130482,0.1983622,101720.0,101710.0,1.34798706]
[1734164132080,0.31633939,101720.0,101710.0,1.34798706]
[1734164132674,0.1983622,101720.0,101710.0,1.34706276]
[1734164135374,0.31633939,101720.0,101710.0,1.34706276]
[1734164136574,0.25558742,101720.0,101710.0,1.34706276]
[1734164136774,0.31633939,101720.0,101710.0,1.34706276]
[1734164136983,0.31633939,101720.0,101710.0,1.3463213]
[1734164137386,0.25558742,101720.0,101710.0,1.3463213]
[1734164137587,0.31633939,101720.0,101710.0,1.3463213]
[1734164139379,0.31633939,101720.0,101710.0,1.34550736]
[1734164141381,0.20643542,101720.0,101710.0,1.13068749]
[1734164141684,0.08845823,101720.0,101710.0,1.40408302]
[1734164141879,0.35786548,101730.0,101720.0,0.049152]
[1734164142083,0.35786548,101730.0,101720.0,2.19357516]
[1734164142386,0.35836548,101730.0,101720.0,2.25432713]
[1734164142686,0.32696548,101730.0,101720.0,1.09734177]
[1734164143287,0.20848829,101730.0,101720.0,1.09734177]
[1734164143789,0.14773632,101730.0,101720.0,1.09734177]
[1734164144177,0.14823632,101730.0,101720.0,1.36917025]
[1734164144790,0.14823632,101730.0,101720.0,1.09734177]
[1734164145288,0.14773632,101730.0,101720.0,1.09734177]
[1734164146281,0.14823632,101730.0,101720.0,1.09734177]
[1734164147179,0.14773632,101730.0,101720.0,1.391515]
[1734164147386,0.14773632,101730.0,101720.0,1.02734284]
[1734164148188,0.14823632,101730.0,101720.0,1.02734284]
[1734164149290,0.14773632,101730.0,101720.0,1.02734284]
[1734164149990,0.14773632,101730.0,101720.0,1.02461578]
[1734164150194,0.14823632,101730.0,101720.0,1.02461578]
[1734164151287,0.14823632,101730.0,101720.0,1.3778733]
[1734164151989,0.05977809,101730.0,101720.0,1.08370007]
[1734164152185,0.05977809,101730.0,101720.0,1.12671325]
[1734164152991,0.05977809,101730.0,101720.0,1.42078836]
[1734164153287,0.05977809,101730.0,101720.0,1.14445204]
[1734164153288,0.00059935,101730.0,101720.0,1.14445204]
[1734164153495,0.00059935,101730.0,101720.0,1.45825205]
[1734164153691,0.00059935,101730.0,101720.0,2.31427776]
[1734164153897,0.00059935,101730.0,101720.0,2.65891416]
[1734164154193,0.00059935,101730.0,101720.0,2.65436859]
[1734164155393,0.00059935,101730.0,101720.0,2.34231161]
[1734164155893,0.00059935,101730.0,101720.0,1.93302838]
[1734164156296,0.00059935,101730.0,101720.0,2.34231161]
[1734164157498,0.00059935,101730.0,101720.0,1.93302838]
[1734164158391,0.00059935,101730.0,101720.0,1.94196598]
[1734164159199,0.00059935,101730.0,101720.0,1.58116598]
[1734164159398,0.00059935,101730.0,101720.0,2.30276598]
[1734164161399,0.00059935,101730.0,101720.0,2.30283995]
[1734164162907,0.00059935,101730.0,101720.0,2.00283995]
[1734164163198,9.935e-05,101730.0,101720.0,2.00283995]
[1734164163600,9.935e-05,101730.0,101720.0,1.88133601]
[1734164163798,9.935e-05,101730.0,101720.0,2.00283995]
[1734164165297,9.935e-05,101730.0,101720.0,1.88133601]
[1734164165493,9.935e-05,101730.0,101720.0,1.50936618]
[1734164165691,9.935e-05,101730.0,101720.0,2.00429162]
[1734164170602,0.0005,101740.0,101730.0,0.049147]
[1734164170901,0.0005,101740.0,101730.0,1.3947252]
[1734164171101,0.0005,101740.0,101730.0,2.5947252]
[1734164171308,0.20657235,101750.0,101730.0,3.0947252]
[1734164171506,0.20657235,101750.0,101740.0,0.75684326]
[1734164171705,0.20657235,101750.0,101740.0,1.02564754]
[1734164172409,0.21647087,101750.0,101740.0,1.02564754]
[1734164173000,0.21499575,101750.0,101740.0,1.02564754]
[1734164174100,0.21499575,101750.0,101740.0,0.79985644]
[1734164174306,0.21499575,101750.0,101740.0,1.02532867]
[1734164174709,0.21499575,101750.0,101740.0,0.67244106]
[1734164177301,0.21499575,101750.0,101740.0,1.02532867]
[1734164177912,0.21499575,101750.0,101740.0,0.9645767]
[1734164178311,0.21499575,101750.0,101740.0,1.02532867]
[1734164178605,0.21499575,101750.0,101740.0,1.02545706]
[1734164180310,0.21549575,101750.0,101740.0,1.02545706]
[1734164181309,0.33347294,101750.0,101740.0,1.02545706]
[1734164182903,0.33347294,101750.0,101740.0,1.02585531]
[1734164183305,0.33347294,101750.0,101740.0,1.00117607]
[1734164185910,0.33347294,101750.0,101740.0,1.36197607]
[1734164186305,0.21549575,101750.0,101740.0,1.36197607]
[1734164186508,0.33347294,101750.0,101740.0,1.36197607]
[1734164186709,0.33347294,101750.0,101740.0,1.09259363]
[1734164187011,0.33347294,101750.0,101740.0,1.30105677]
[1734164187221,0.33347294,101750.0,101740.0,1.36180874]
[1734164187716,0.21549575,101750.0,101740.0,1.36180874]
[1734164192612,0.21549575,101750.0,101740.0,1.42256071]
[1734164192821,0.21549575,101750.0,101740.0,1.06947759]
[1734164193018,0.12703752,101750.0,101740.0,1.06947759]
[1734164193318,0.12703752,101750.0,101740.0,1.97876082]
[1734164193513,0.12703752,101750.0,101740.0,2.2908712]
[1734164194615,0.09253752,101750.0,101740.0,2.2908712]
[1734164195726,0.09253752,101750.0,101740.0,1.91800885]
[1734164196025,0.09253752,101750.0,101740.0,1.56923909]
[1734164196427,0.09253752,101750.0,101740.0,1.50848712]
[1734164197318,0.09203752,101750.0,101740.0,1.50848712]
[1734164197718,0.09203752,101750.0,101740.0,1.56923909]
[1734164198227,0.09203752,101750.0,101740.0,1.50848712]
[1734164199230,0.18049575,101750.0,101740.0,1.50848712]
[1734164201223,0.18049575,101750.0,101740.0,1.50898712]
[1734164203929,0.18049575,101750.0,101740.0,1.44823515]
[1734164204331,0.18049575,101750.0,101740.0,1.50898712]
[1734164204846,0.09203752,101750.0,101740.0,1.51003102]
[1734164208131,0.09203752,101750.0,101740.0,1.91931425]
[1734164208639,0.09203752,101750.0,101740.0,1.51003102]
[1734164209232,0.18049575,101750.0,101740.0,1.51003102]
[1734164213933,0.18049575,101750.0,101740.0,1.5109782]
[1734164221438,0.18049575,101750.0,101740.0,1.45100096]
[1734164221637,0.24124772,101750.0,101740.0,0.95100096]
[1734164221849,0.27344772,101750.0,101740.0,0.95100096]
[1734164222554,0.27344772,101750.0,101740.0,1.36028419]
[1734164222848,0.27344772,101750.0,101740.0,1.67532948]
[1734164223253,0.27344772,101750.0,101740.0,1.36028419]
[1734164223550,0.27344772,101750.0,101740.0,1.42103616]
[1734164224453,0.27344772,101750.0,101740.0,1.73608806]
[1734164225040,0.27344772,101750.0,101740.0,1.42103616]
[1734164225353,0.27344772,101750.0,101740.0,1.73603429]
[1734164226459,0.21269575,101750.0,101740.0,1.42103616]
[1734164226643,0.27344772,101750.0,101740.0,1.62612824]
[1734164226843,0.27344772,101750.0,101720.0,0.33481829]
[1734164226844,0.049142,101740.0,101720.0,0.33481829]
[1734164227047,0.049152,101720.0,101710.0,0.33481829]
[1734164227344,0.049152,101720.0,101700.0,1.709961]
[1734164227345,0.049156,101710.0,101700.0,1.709961]
[1734164227655,0.1983045,101710.0,101700.0,1.709961]
[1734164228146,0.10990797,101710.0,101700.0,1.709961]
[1734164228651,0.10990797,101710.0,101700.0,1.94527886]
[1734164231952,0.14290797,101710.0,101700.0,1.94527886]
[1734164232551,0.17550797,101710.0,101700.0,1.89611786]
[1734164233041,0.17550797,101710.0,101700.0,1.53531786]
[1734164233556,0.17550797,101710.0,101700.0,1.3]
[1734164233946,0.17550797,101710.0,101700.0,0.1]
[1734164233947,0.53630797,101710.0,101700.0,0.1]
[1734164235747,0.54604016,101710.0,101700.0,0.1]
[1734164236760,0.54604016,101710.0,101700.0,0.14302729]
[1734164237256,0.54604016,101710.0,101700.0,0.1]
[1734164238347,0.12448819,101710.0,101700.0,0.1]
[1734164238654,0.18524016,101710.0,101700.0,0.1]
[1734164239044,0.18524016,101710.0,101700.0,0.1430253]
[1734164240258,0.18524016,101710.0,101700.0,0.1435253]
[1734164246764,0.18524016,101710.0,101700.0,0.1005]
[1734164249760,0.12448819,101710.0,101700.0,0.1005]
[1734164249958,0.18524016,101710.0,101700.0,0.1005]
[1734164250265,0.12448819,101710.0,101700.0,0.1005]
[1734164251064,0.18524016,101710.0,101700.0,0.1005]
[1734164253260,0.18524016,101710.0,101700.0,0.33581786]
[1734164254261,0.27363669,101710.0,101700.0,0.33581786]
[1734164255457,0.27363669,101710.0,101700.0,0.37834304]
[1734164255661,0.29320319,101710.0,101700.0,0.37834304]
[1734164256058,0.41106523,101710.0,101700.0,0.33531786]
[1734164256265,0.3226687,101710.0,101700.0,0.14302518]
[1734164256861,0.3226687,101710.0,101700.0,0.43779189]
[1734164260968,0.26191673,101710.0,101700.0,0.43779189]
[1734164262169,0.40925295,101710.0,101700.0,0.43779189]
[1734164263163,0.40925295,101710.0,101700.0,0.78968797]
[1734164264876,0.83080492,101710.0,101700.0,0.78968797]
[1734164266673,0.83080492,101710.0,101700.0,1.03744902]
[1734164267267,0.77005295,101710.0,101700.0,0.74268231]
[1734164267467,0.83080492,101710.0,101700.0,0.74268231]
[1734164268965,0.83080492,101710.0,101700.0,0.78991768]
[1734164269276,0.83080492,101710.0,101700.0,0.49492126]
[1734164271463,0.81123842,101710.0,101700.0,0.49492126]
[1734164272274,0.75048645,101710.0,101700.0,0.49492126]
[1734164272572,0.81123842,101710.0,101700.0,0.49492126]
[1734164272775,0.75048645,101710.0,101700.0,0.49492126]
[1734164275276,0.77028324,101710.0,101700.0,0.49492126]
[1734164275679,0.40948324,101710.0,101700.0,0.49492126]
[1734164275979,0.77028324,101710.0,101700.0,0.49492126]
[1734164277381,0.40948324,101710.0,101700.0,0.49492126]
[1734164277677,0.77028324,101710.0,101700.0,0.49492126]
[1734164278571,0.56583695,101710.0,101700.0,0.39501091]
[1734164279476,0.20503695,101710.0,101700.0,0.39501091]
[1734164279684,0.83103065,101710.0,101700.0,0.74200581]
[1734164279882,0.47023065,101710.0,101700.0,0.74200581]
[1734164280184,0.83103065,101710.0,101700.0,0.74200581]
[1734164280776,0.83103065,101710.0,101700.0,0.49492161]
[1734164282578,0.83103065,101710.0,101700.0,0.74196973]
[1734164283081,0.83103065,101710.0,101700.0,0.69196973]
[1734164284187,0.81123386,101710.0,101700.0,0.69196973]
[1734164285288,0.83085363,101710.0,101700.0,0.69196973]
[1734164285477,0.77010166,101710.0,101700.0,0.69196973]
[1734164285789,0.83085363,101710.0,101700.0,0.69196973]
[1734164286683,0.83085363,101710.0,101700.0,0.44492161]